[Event "Late-Titled-Tuesday-Blitz-September-19-2023"]
[Site "Chess.com"]
[Date "2023.09.19"]
[Round "7"]
[White "floplover"]
[Black "Quattroporte300"]
[Result "0-1"]
[WhiteElo "2269"]
[BlackElo "2403"]
[TimeControl "180+1"]
[EndTime "15:15:34 PDT"]
[Termination "Quattroporte300 won by checkmate"]

1. e4 {[%clk 0:03:00.9]} 1... c5 {[%clk 0:02:56.9]} 2. Nf3 {[%clk 0:03:00.8]}
2... d6 {[%clk 0:02:55.6]} 3. d4 {[%clk 0:03:00.2]} 3... cxd4 {[%clk 0:02:56.5]}
4. Nxd4 {[%clk 0:03:00.5]} 4... Nf6 {[%clk 0:02:56.8]} 5. Nc3 {[%clk 0:03:00.8]}
5... a6 {[%clk 0:02:56.8]} 6. Be2 {[%clk 0:03:01]} 6... e5 {[%clk 0:02:55.3]} 7.
Nb3 {[%clk 0:03:01.6]} 7... Be7 {[%clk 0:02:55.1]} 8. Bg5 {[%clk 0:03:02.2]}
8... Be6 {[%clk 0:02:46.7]} 9. Qd3 {[%clk 0:03:01.3]} 9... Nbd7 {[%clk
0:02:44.4]} 10. Bxf6 {[%clk 0:02:49.8]} 10... Nxf6 {[%clk 0:02:43.4]} 11. Nd5
{[%clk 0:02:47.9]} 11... Nxd5 {[%clk 0:02:42.4]} 12. exd5 {[%clk 0:02:48.2]}
12... Bd7 {[%clk 0:02:40.1]} 13. c4 {[%clk 0:02:46.4]} 13... O-O {[%clk
0:02:39.7]} 14. O-O {[%clk 0:02:42.1]} 14... f5 {[%clk 0:02:39.8]} 15. Qd2
{[%clk 0:02:37.4]} 15... Rc8 {[%clk 0:02:31.7]} 16. Na5 {[%clk 0:02:32.3]} 16...
b6 {[%clk 0:02:23.4]} 17. Nb3 {[%clk 0:02:30]} 17... f4 {[%clk 0:02:10.4]} 18.
Bd3 {[%clk 0:02:20.9]} 18... f3 {[%clk 0:02:03.3]} 19. g3 {[%clk 0:02:18.4]}
19... Bg5 {[%clk 0:02:02.5]} 20. Qb4 {[%clk 0:02:15.7]} 20... Bh3 {[%clk
0:01:55.9]} 21. Rfe1 {[%clk 0:01:59.8]} 21... a5 {[%clk 0:01:53.5]} 22. Qc3
{[%clk 0:01:53.5]} 22... Qe8 {[%clk 0:01:46.4]} 23. Nd2 {[%clk 0:01:49.2]} 23...
Qh5 {[%clk 0:01:43.2]} 24. Ne4 {[%clk 0:01:45]} 24... Be7 {[%clk 0:01:43.4]} 25.
Re3 {[%clk 0:01:35]} 25... Bg4 {[%clk 0:01:43.4]} 26. Bf1 {[%clk 0:01:32.2]}
26... Rf7 {[%clk 0:01:32.7]} 27. Qd3 {[%clk 0:01:30.3]} 27... Rcf8 {[%clk
0:01:30.9]} 28. a3 {[%clk 0:01:29.2]} 28... Bh3 {[%clk 0:01:29.5]} 29. b4 {[%clk
0:01:28.1]} 29... Bxf1 {[%clk 0:01:27.5]} 30. Qxf1 {[%clk 0:01:29]} 30... Bg5
{[%clk 0:01:06.2]} 31. Rc3 {[%clk 0:01:13.2]} 31... Qg4 {[%clk 0:01:04.3]} 32.
Re1 {[%clk 0:01:07.1]} 32... Be7 {[%clk 0:00:57.3]} 33. Ree3 {[%clk 0:01:00]}
33... Rf5 {[%clk 0:00:56.2]} 34. h3 {[%clk 0:00:58.1]} 34... Qg6 {[%clk
0:00:52.3]} 35. c5 {[%clk 0:00:57.5]} 35... axb4 {[%clk 0:00:51]} 36. axb4
{[%clk 0:00:57.1]} 36... bxc5 {[%clk 0:00:51.6]} 37. bxc5 {[%clk 0:00:58]} 37...
dxc5 {[%clk 0:00:51]} 38. Qd3 {[%clk 0:00:46.4]} 38... Qh6 {[%clk 0:00:40.2]}
39. Qf1 {[%clk 0:00:35.9]} 39... Rh5 {[%clk 0:00:39.4]} 40. Rxf3 {[%clk
0:00:33.7]} 40... Rxh3 {[%clk 0:00:38.6]} 41. Rxf8+ {[%clk 0:00:31.4]} 41...
Bxf8 {[%clk 0:00:39.5]} 42. Qg2 {[%clk 0:00:30.9]} 42... Rh5 {[%clk 0:00:36.2]}
43. Nxc5 {[%clk 0:00:28.6]} 43... Qd2 {[%clk 0:00:21.5]} 44. Qe4 {[%clk
0:00:03.1]} 44... Qxc3 {[%clk 0:00:15.7]} 45. Ne6 {[%clk 0:00:01.9]} 45... Qc1+
{[%clk 0:00:13.7]} 46. Kg2 {[%clk 0:00:01.1]} 46... Qh1# {[%clk 0:00:13.5]} 0-1

[Event "Late-Titled-Tuesday-Blitz-September-19-2023"]
[Site "Chess.com"]
[Date "2023.09.19"]
[Round "7"]
[White "Sina_Movahed"]
[Black "krzyzan94"]
[Result "1-0"]
[WhiteElo "2981"]
[BlackElo "2797"]
[TimeControl "180+1"]
[EndTime "15:15:37 PDT"]
[Termination "Sina_Movahed won by checkmate"]

1. e4 {[%clk 0:02:55.8]} 1... c5 {[%clk 0:02:59.8]} 2. Nf3 {[%clk 0:02:56.1]}
2... Nc6 {[%clk 0:03:00.1]} 3. d4 {[%clk 0:02:56.2]} 3... cxd4 {[%clk
0:02:59.7]} 4. Nxd4 {[%clk 0:02:57.1]} 4... e5 {[%clk 0:02:59.8]} 5. Nb5 {[%clk
0:02:56.8]} 5... d6 {[%clk 0:02:59.1]} 6. c4 {[%clk 0:02:56.3]} 6... Be6 {[%clk
0:02:56.2]} 7. N1c3 {[%clk 0:02:54.1]} 7... a6 {[%clk 0:02:56]} 8. Na3 {[%clk
0:02:54.5]} 8... g6 {[%clk 0:02:54.5]} 9. Nc2 {[%clk 0:02:54]} 9... Bg7 {[%clk
0:02:49.6]} 10. Bd3 {[%clk 0:02:53.8]} 10... Nf6 {[%clk 0:02:38.4]} 11. O-O
{[%clk 0:02:53]} 11... O-O {[%clk 0:02:36.8]} 12. b3 {[%clk 0:02:51.9]} 12...
Rc8 {[%clk 0:02:35.7]} 13. Be3 {[%clk 0:02:44.8]} 13... Ng4 {[%clk 0:02:26.4]}
14. Bd2 {[%clk 0:02:43.3]} 14... f5 {[%clk 0:02:26]} 15. Qe2 {[%clk 0:02:35.9]}
15... Qh4 {[%clk 0:02:11.1]} 16. h3 {[%clk 0:02:31.6]} 16... Nf6 {[%clk
0:02:06.3]} 17. Rae1 {[%clk 0:02:18]} 17... f4 {[%clk 0:01:55]} 18. f3 {[%clk
0:02:03.6]} 18... Nh5 {[%clk 0:01:54.8]} 19. Qf2 {[%clk 0:02:02.9]} 19... Qd8
{[%clk 0:01:30.1]} 20. Ne2 {[%clk 0:01:59.4]} 20... Bf6 {[%clk 0:01:27.7]} 21.
Kh1 {[%clk 0:01:51.3]} 21... Bh4 {[%clk 0:01:27.6]} 22. Qg1 {[%clk 0:01:51.4]}
22... Bxe1 {[%clk 0:01:20.2]} 23. Bxe1 {[%clk 0:01:52.3]} 23... Kh8 {[%clk
0:00:58.8]} 24. Nb4 {[%clk 0:01:41]} 24... Nxb4 {[%clk 0:00:53.1]} 25. Bxb4
{[%clk 0:01:41.9]} 25... h6 {[%clk 0:00:48]} 26. Rd1 {[%clk 0:01:40.5]} 26...
Qe7 {[%clk 0:00:38.2]} 27. a4 {[%clk 0:01:34.4]} 27... Rfd8 {[%clk 0:00:37.4]}
28. a5 {[%clk 0:01:34.7]} 28... Rc6 {[%clk 0:00:36.4]} 29. Bb1 {[%clk
0:01:33.4]} 29... Kh7 {[%clk 0:00:36.5]} 30. Be1 {[%clk 0:01:30.9]} 30... g5
{[%clk 0:00:36.1]} 31. Bf2 {[%clk 0:01:30.5]} 31... Nf6 {[%clk 0:00:35.2]} 32.
Nc3 {[%clk 0:01:29.7]} 32... h5 {[%clk 0:00:34.6]} 33. Nd5 {[%clk 0:01:29.7]}
33... Qg7 {[%clk 0:00:32.6]} 34. Nb6 {[%clk 0:01:18.8]} 34... g4 {[%clk
0:00:30.3]} 35. Bh4 {[%clk 0:01:12.5]} 35... Rg8 {[%clk 0:00:27.4]} 36. Nd5
{[%clk 0:01:08.3]} 36... Rf8 {[%clk 0:00:10.1]} 37. Nxf4 {[%clk 0:01:05.5]}
37... Bc8 {[%clk 0:00:04.3]} 38. Nd5 {[%clk 0:00:54.4]} 38... Ng8 {[%clk
0:00:04.4]} 39. hxg4 {[%clk 0:00:47.9]} 39... hxg4 {[%clk 0:00:04.7]} 40. f4
{[%clk 0:00:48.4]} 40... g3 {[%clk 0:00:04.1]} 41. Qe1 {[%clk 0:00:46.7]} 41...
exf4 {[%clk 0:00:04.3]} 42. e5+ {[%clk 0:00:46.2]} 42... Bf5 {[%clk 0:00:05]}
43. Nf6+ {[%clk 0:00:30.6]} 43... Rxf6 {[%clk 0:00:04]} 44. exf6 {[%clk
0:00:30.2]} 44... Qg4 {[%clk 0:00:02.7]} 45. Bxf5+ {[%clk 0:00:27.2]} 45... Qxf5
{[%clk 0:00:03.6]} 46. Qe8 {[%clk 0:00:22.4]} 46... Nxf6 {[%clk 0:00:03]} 47.
Qf7+ {[%clk 0:00:21.4]} 47... Kh6 {[%clk 0:00:03.3]} 48. Bxf6 {[%clk 0:00:19.6]}
48... Qg6 {[%clk 0:00:02.8]} 49. Qf8+ {[%clk 0:00:18.9]} 49... Kh5 {[%clk
0:00:02.8]} 50. Qh8+ {[%clk 0:00:19.2]} 50... Kg4 {[%clk 0:00:03.4]} 51. Qh3#
{[%clk 0:00:19.4]} 1-0

[Event "Late-Titled-Tuesday-Blitz-September-19-2023"]
[Site "Chess.com"]
[Date "2023.09.19"]
[Round "7"]
[White "emeli_chess"]
[Black "tteshan"]
[Result "0-1"]
[WhiteElo "2364"]
[BlackElo "2511"]
[TimeControl "180+1"]
[EndTime "15:15:38 PDT"]
[Termination "tteshan won by resignation"]

1. d4 {[%clk 0:03:00.9]} 1... d5 {[%clk 0:02:59.8]} 2. c4 {[%clk 0:03:01]} 2...
dxc4 {[%clk 0:03:00.7]} 3. Nf3 {[%clk 0:03:00.5]} 3... Nf6 {[%clk 0:03:01.2]} 4.
e3 {[%clk 0:03:00.7]} 4... Bg4 {[%clk 0:03:00.8]} 5. Bxc4 {[%clk 0:03:00.8]}
5... e6 {[%clk 0:03:01]} 6. Nc3 {[%clk 0:03:00.6]} 6... a6 {[%clk 0:02:59.1]} 7.
h3 {[%clk 0:03:00.7]} 7... Bh5 {[%clk 0:02:59]} 8. g4 {[%clk 0:02:58.9]} 8...
Bg6 {[%clk 0:02:59.6]} 9. Nh4 {[%clk 0:02:58.4]} 9... Be4 {[%clk 0:02:50.8]} 10.
Nxe4 {[%clk 0:02:50.5]} 10... Nxe4 {[%clk 0:02:51.7]} 11. Nf3 {[%clk 0:02:48.8]}
11... h5 {[%clk 0:02:46.2]} 12. Rg1 {[%clk 0:02:37.2]} 12... hxg4 {[%clk
0:02:45]} 13. hxg4 {[%clk 0:02:37.6]} 13... Bb4+ {[%clk 0:02:41.4]} 14. Bd2
{[%clk 0:02:36.2]} 14... Nxd2 {[%clk 0:02:38.1]} 15. Nxd2 {[%clk 0:02:36.4]}
15... Nc6 {[%clk 0:02:35.3]} 16. a3 {[%clk 0:02:35.4]} 16... Bxd2+ {[%clk
0:02:21.6]} 17. Qxd2 {[%clk 0:02:34.5]} 17... Qf6 {[%clk 0:02:20.3]} 18. O-O-O
{[%clk 0:02:32.1]} 18... Rh2 {[%clk 0:02:17.7]} 19. Rdf1 {[%clk 0:02:14.4]}
19... O-O-O {[%clk 0:02:16.6]} 20. Rh1 {[%clk 0:02:13.8]} 20... Rdh8 {[%clk
0:02:14.9]} 21. Rxh2 {[%clk 0:02:13.4]} 21... Rxh2 {[%clk 0:02:15.8]} 22. Qe2
{[%clk 0:01:53.3]} 22... Rg2 {[%clk 0:01:42.6]} 23. Bd3 {[%clk 0:01:25]} 23...
Nd8 {[%clk 0:01:22.5]} 24. Be4 {[%clk 0:01:23.2]} 24... Rh2 {[%clk 0:01:21.5]}
25. Qf3 {[%clk 0:01:17.1]} 25... Qxf3 {[%clk 0:01:18.6]} 26. Bxf3 {[%clk
0:01:17.4]} 26... Kd7 {[%clk 0:01:18.3]} 27. Kd2 {[%clk 0:01:17.4]} 27... c6
{[%clk 0:01:15.1]} 28. Ke2 {[%clk 0:01:17.3]} 28... Kd6 {[%clk 0:01:14.1]} 29.
b4 {[%clk 0:01:11.7]} 29... e5 {[%clk 0:01:13.3]} 30. dxe5+ {[%clk 0:01:03.3]}
30... Kxe5 {[%clk 0:01:11.7]} 31. Rh1 {[%clk 0:01:03.3]} 31... Rxh1 {[%clk
0:01:10.9]} 32. Bxh1 {[%clk 0:01:03.5]} 32... Ne6 {[%clk 0:01:07.9]} 33. f4+
{[%clk 0:01:03.7]} 33... Kd6 {[%clk 0:01:06.4]} 34. g5 {[%clk 0:00:55.5]} 34...
Nc7 {[%clk 0:01:01.8]} 35. Kd3 {[%clk 0:00:53.3]} 35... Nb5 {[%clk 0:00:55.8]}
36. a4 {[%clk 0:00:53.3]} 36... Nc7 {[%clk 0:00:56.5]} 37. e4 {[%clk 0:00:49]}
37... Ne6 {[%clk 0:00:41.5]} 38. e5+ {[%clk 0:00:48.2]} 38... Kc7 {[%clk
0:00:38.9]} 39. Ke4 {[%clk 0:00:47.5]} 39... c5 {[%clk 0:00:39.3]} 40. bxc5
{[%clk 0:00:44.8]} 40... Nxc5+ {[%clk 0:00:40.2]} 41. Kd5 {[%clk 0:00:45.1]}
41... Nxa4 {[%clk 0:00:40.3]} 42. f5 {[%clk 0:00:44.9]} 42... b5 {[%clk
0:00:36.8]} 43. e6 {[%clk 0:00:41.8]} 43... Nb6+ {[%clk 0:00:34.8]} 44. Kc5
{[%clk 0:00:21.9]} 44... fxe6 {[%clk 0:00:24.4]} 45. fxe6 {[%clk 0:00:19.2]}
45... Nc8 {[%clk 0:00:24]} 46. Be4 {[%clk 0:00:16.3]} 46... Ne7 {[%clk
0:00:23.6]} 47. Bd3 {[%clk 0:00:16]} 47... Nc6 {[%clk 0:00:21.5]} 48. Bxb5
{[%clk 0:00:14.1]} 48... axb5 {[%clk 0:00:21.5]} 49. Kxb5 {[%clk 0:00:14.4]}
49... Nd4+ {[%clk 0:00:22]} 50. Kc5 {[%clk 0:00:14.2]} 50... Nxe6+ {[%clk
0:00:22.9]} 51. Kd5 {[%clk 0:00:14.3]} 51... Kd7 {[%clk 0:00:22.2]} 52. Ke5
{[%clk 0:00:14.6]} 52... Nxg5 {[%clk 0:00:21.8]} 53. Kf5 {[%clk 0:00:14.6]}
53... Ne6 {[%clk 0:00:22.4]} 54. Kg6 {[%clk 0:00:14.7]} 54... Kd6 {[%clk
0:00:22.8]} 55. Kf7 {[%clk 0:00:14.8]} 55... Ke5 {[%clk 0:00:22.6]} 56. Kg6
{[%clk 0:00:15.2]} 56... Kf4 {[%clk 0:00:21.7]} 57. Kh5 {[%clk 0:00:15.4]} 57...
g5 {[%clk 0:00:21.3]} 0-1

[Event "Late-Titled-Tuesday-Blitz-September-19-2023"]
[Site "Chess.com"]
[Date "2023.09.19"]
[Round "7"]
[White "angelgab3"]
[Black "JoakimVonAnd"]
[Result "0-1"]
[WhiteElo "2578"]
[BlackElo "2726"]
[TimeControl "180+1"]
[EndTime "15:15:49 PDT"]
[Termination "JoakimVonAnd won by resignation"]

1. e4 {[%clk 0:02:45.3]} 1... c5 {[%clk 0:02:56.3]} 2. Nf3 {[%clk 0:02:41.8]}
2... a6 {[%clk 0:02:54.9]} 3. c4 {[%clk 0:02:41.6]} 3... Nc6 {[%clk 0:02:53.6]}
4. d4 {[%clk 0:02:41.3]} 4... cxd4 {[%clk 0:02:54.1]} 5. Nxd4 {[%clk 0:02:42.2]}
5... d6 {[%clk 0:02:54.7]} 6. Nc3 {[%clk 0:02:40.3]} 6... g6 {[%clk 0:02:54.7]}
7. Be3 {[%clk 0:02:40.4]} 7... Bg7 {[%clk 0:02:55.1]} 8. f3 {[%clk 0:02:39.3]}
8... Nf6 {[%clk 0:02:55]} 9. Be2 {[%clk 0:02:37.9]} 9... O-O {[%clk 0:02:55.1]}
10. O-O {[%clk 0:02:37.6]} 10... Bd7 {[%clk 0:02:55.7]} 11. Qd2 {[%clk
0:02:36.8]} 11... Rc8 {[%clk 0:02:55.9]} 12. Rac1 {[%clk 0:02:36.1]} 12... Re8
{[%clk 0:02:50.3]} 13. b3 {[%clk 0:02:30.9]} 13... Nxd4 {[%clk 0:02:47.2]} 14.
Bxd4 {[%clk 0:02:31]} 14... Bc6 {[%clk 0:02:47.4]} 15. Bd1 {[%clk 0:02:26.1]}
15... Qa5 {[%clk 0:02:46.2]} 16. Bc2 {[%clk 0:02:21.7]} 16... Nd7 {[%clk
0:02:44.4]} 17. Bxg7 {[%clk 0:02:18.5]} 17... Kxg7 {[%clk 0:02:45.3]} 18. Rfe1
{[%clk 0:02:14]} 18... b5 {[%clk 0:02:40.9]} 19. cxb5 {[%clk 0:01:54.9]} 19...
axb5 {[%clk 0:02:41.8]} 20. Qd4+ {[%clk 0:01:54.4]} 20... Kg8 {[%clk 0:02:36.9]}
21. Bd3 {[%clk 0:01:49.6]} 21... b4 {[%clk 0:02:31.8]} 22. Nd5 {[%clk
0:01:49.7]} 22... Bxd5 {[%clk 0:02:26.9]} 23. exd5 {[%clk 0:01:50.6]} 23... Ne5
{[%clk 0:02:15]} 24. Bf1 {[%clk 0:01:44.7]} 24... Qxa2 {[%clk 0:02:02.2]} 25.
Qxb4 {[%clk 0:01:11.2]} 25... Rb8 {[%clk 0:02:01.8]} 26. Qh4 {[%clk 0:00:59.5]}
26... Qxb3 {[%clk 0:01:58.6]} 27. f4 {[%clk 0:00:58.9]} 27... Nd3 {[%clk
0:01:48.6]} 28. Bxd3 {[%clk 0:00:55.3]} 28... Qxd3 {[%clk 0:01:49.5]} 29. Rxe7
{[%clk 0:00:54.7]} 29... Qxd5 {[%clk 0:01:37.1]} 30. h3 {[%clk 0:00:48]} 30...
Qd4+ {[%clk 0:01:33.4]} 31. Kh1 {[%clk 0:00:48.2]} 31... Rxe7 {[%clk 0:01:33.6]}
32. Qxe7 {[%clk 0:00:49.1]} 32... Qxf4 {[%clk 0:01:33.8]} 33. Qc7 {[%clk
0:00:49.9]} 33... Ra8 {[%clk 0:01:29.1]} 34. Rd1 {[%clk 0:00:48.7]} 34... Ra2
{[%clk 0:01:22]} 35. Qxd6 {[%clk 0:00:45.8]} 35... Qxd6 {[%clk 0:01:19]} 36.
Rxd6 {[%clk 0:00:46.7]} 36... Kg7 {[%clk 0:01:19.7]} 37. Kh2 {[%clk 0:00:46.4]}
37... Ra3 {[%clk 0:01:19.6]} 38. Rc6 {[%clk 0:00:46.5]} 38... Rd3 {[%clk
0:01:19.8]} 39. Rb6 {[%clk 0:00:46.7]} 39... Rc3 {[%clk 0:01:20]} 40. Ra6 {[%clk
0:00:47.2]} 40... Rb3 {[%clk 0:01:20.5]} 41. Rc6 {[%clk 0:00:47.8]} 41... Ra3
{[%clk 0:01:19.9]} 42. Rd6 {[%clk 0:00:48.3]} 42... h6 {[%clk 0:01:20.5]} 43.
Rb6 {[%clk 0:00:48.8]} 43... Rc3 {[%clk 0:01:17.5]} 44. Ra6 {[%clk 0:00:49.1]}
44... Rc4 {[%clk 0:01:17.9]} 45. Rb6 {[%clk 0:00:49.5]} 45... h5 {[%clk
0:01:18.5]} 46. Ra6 {[%clk 0:00:50]} 46... h4 {[%clk 0:01:18.6]} 47. Rb6 {[%clk
0:00:50.6]} 47... g5 {[%clk 0:01:19.1]} 48. Ra6 {[%clk 0:00:51.2]} 48... f6
{[%clk 0:01:19.5]} 49. Rb6 {[%clk 0:00:51.8]} 49... Kg6 {[%clk 0:01:20.2]} 50.
Ra6 {[%clk 0:00:52.4]} 50... Rc3 {[%clk 0:01:20.8]} 51. Rb6 {[%clk 0:00:52.7]}
51... Ra3 {[%clk 0:01:21.3]} 52. Rc6 {[%clk 0:00:52.8]} 52... Rb3 {[%clk
0:01:21.6]} 53. Rd6 {[%clk 0:00:53.3]} 53... Kf5 {[%clk 0:01:21.9]} 54. Rc6
{[%clk 0:00:53.5]} 54... Ke5 {[%clk 0:01:21.1]} 55. Rc5+ {[%clk 0:00:53.4]}
55... Kf4 {[%clk 0:01:21.6]} 56. Rc6 {[%clk 0:00:53.7]} 56... Rb4 {[%clk
0:01:21.6]} 57. Rxf6+ {[%clk 0:00:51.9]} 57... Ke5 {[%clk 0:01:20.5]} 58. Rf8
{[%clk 0:00:51.8]} 58... Rb2 {[%clk 0:01:19.7]} 59. Kg1 {[%clk 0:00:51.1]} 59...
Ke4 {[%clk 0:01:18.7]} 60. Kf1 {[%clk 0:00:49.9]} 60... Ra2 {[%clk 0:01:17.4]}
61. Re8+ {[%clk 0:00:50]} 61... Kf4 {[%clk 0:01:17.8]} 62. Rf8+ {[%clk
0:00:50.4]} 62... Kg3 {[%clk 0:01:15.8]} 63. Rf5 {[%clk 0:00:35.3]} 63... Ra1+
{[%clk 0:01:13.5]} 64. Ke2 {[%clk 0:00:35.5]} 64... Kxg2 {[%clk 0:01:12.7]} 65.
Rxg5+ {[%clk 0:00:35.7]} 65... Kxh3 {[%clk 0:01:13.2]} 66. Rg8 {[%clk
0:00:35.6]} 66... Kh2 {[%clk 0:01:11.4]} 67. Kf2 {[%clk 0:00:34.4]} 67... Ra7
{[%clk 0:01:10.6]} 68. Rg6 {[%clk 0:00:31.4]} 68... Rf7+ {[%clk 0:01:10.3]} 69.
Ke2 {[%clk 0:00:31.6]} 69... h3 {[%clk 0:01:09.3]} 70. Rg8 {[%clk 0:00:30.3]}
70... Kh1 {[%clk 0:01:09.3]} 71. Rg3 {[%clk 0:00:27.9]} 71... Kh2 {[%clk
0:01:06]} 72. Rg8 {[%clk 0:00:27.7]} 72... Rf5 {[%clk 0:01:06.6]} 73. Rg6 {[%clk
0:00:27.7]} 73... Kh1 {[%clk 0:01:05.4]} 74. Rg3 {[%clk 0:00:27.4]} 74... h2
{[%clk 0:01:02.5]} 75. Rg8 {[%clk 0:00:27.9]} 75... Rf4 {[%clk 0:01:01.7]} 76.
Ke3 {[%clk 0:00:27.2]} 76... Rf1 {[%clk 0:01:01.6]} 77. Ke2 {[%clk 0:00:27.6]}
77... Rg1 {[%clk 0:01:02.1]} 78. Rh8 {[%clk 0:00:23.7]} 78... Kg2 {[%clk
0:01:02.5]} 79. Rg8+ {[%clk 0:00:23.9]} 79... Kh3 {[%clk 0:01:02.5]} 80. Rh8+
{[%clk 0:00:24.3]} 80... Kg3 {[%clk 0:01:03]} 81. Rg8+ {[%clk 0:00:20.6]} 81...
Kf4 {[%clk 0:01:03.1]} 82. Rf8+ {[%clk 0:00:13.8]} 82... Ke5 {[%clk 0:01:02.8]}
0-1

[Event "Late-Titled-Tuesday-Blitz-September-19-2023"]
[Site "Chess.com"]
[Date "2023.09.19"]
[Round "7"]
[White "MBA_CHESS_2021"]
[Black "UK_23"]
[Result "1/2-1/2"]
[WhiteElo "2188"]
[BlackElo "2392"]
[TimeControl "180+1"]
[EndTime "15:15:51 PDT"]
[Termination "Game drawn - insufficient material"]

1. d4 {[%clk 0:03:00.9]} 1... d5 {[%clk 0:02:54.1]} 2. c4 {[%clk 0:03:00.3]}
2... e6 {[%clk 0:02:54.2]} 3. Nc3 {[%clk 0:02:59.8]} 3... Nf6 {[%clk 0:02:54.1]}
4. Bg5 {[%clk 0:02:58.9]} 4... Be7 {[%clk 0:02:51.1]} 5. e3 {[%clk 0:02:58.8]}
5... O-O {[%clk 0:02:51.3]} 6. Qc2 {[%clk 0:02:56.8]} 6... h6 {[%clk 0:02:50]}
7. Bxf6 {[%clk 0:02:56.2]} 7... Bxf6 {[%clk 0:02:50.6]} 8. g4 {[%clk 0:02:49.9]}
8... g6 {[%clk 0:02:46.7]} 9. h4 {[%clk 0:02:49.3]} 9... Bg7 {[%clk 0:02:47.1]}
10. O-O-O {[%clk 0:02:43.2]} 10... a6 {[%clk 0:02:36.3]} 11. f4 {[%clk
0:02:39.5]} 11... dxc4 {[%clk 0:02:32.4]} 12. Bxc4 {[%clk 0:02:37.7]} 12... b5
{[%clk 0:02:32.6]} 13. Bd3 {[%clk 0:02:23]} 13... Bb7 {[%clk 0:02:31.9]} 14. Rh2
{[%clk 0:02:21.3]} 14... Nd7 {[%clk 0:02:26.1]} 15. Kb1 {[%clk 0:02:09.5]} 15...
Rc8 {[%clk 0:02:12.7]} 16. Nge2 {[%clk 0:02:04.7]} 16... c5 {[%clk 0:02:12.7]}
17. dxc5 {[%clk 0:02:03.4]} 17... Rxc5 {[%clk 0:02:10.9]} 18. Qb3 {[%clk
0:01:45.5]} 18... Qc7 {[%clk 0:01:55]} 19. Ne4 {[%clk 0:01:34.1]} 19... Bxe4
{[%clk 0:01:46.7]} 20. Bxe4 {[%clk 0:01:33.7]} 20... Nf6 {[%clk 0:01:47.2]} 21.
Bf3 {[%clk 0:01:30.6]} 21... Rc8 {[%clk 0:01:43.5]} 22. a3 {[%clk 0:01:24.5]}
22... h5 {[%clk 0:01:32.2]} 23. gxh5 {[%clk 0:01:23]} 23... Nxh5 {[%clk
0:01:33.1]} 24. Bxh5 {[%clk 0:01:18.3]} 24... Rxh5 {[%clk 0:01:32.5]} 25. Ng3
{[%clk 0:01:18.3]} 25... Rc5 {[%clk 0:01:31.3]} 26. h5 {[%clk 0:01:16.8]} 26...
Rc1+ {[%clk 0:01:31]} 27. Rxc1 {[%clk 0:01:16.6]} 27... Qxc1+ {[%clk 0:01:31.9]}
28. Ka2 {[%clk 0:01:17]} 28... Qg1 {[%clk 0:01:21.1]} 29. hxg6 {[%clk
0:00:39.2]} 29... Qxh2 {[%clk 0:01:16.4]} 30. gxf7+ {[%clk 0:00:38.9]} 30...
Kxf7 {[%clk 0:01:13.2]} 31. Ne4 {[%clk 0:00:39.1]} 31... Bxb2 {[%clk 0:00:24.7]}
32. Nd6+ {[%clk 0:00:32.1]} 32... Kf8 {[%clk 0:00:16.5]} 33. Nxc8 {[%clk
0:00:30.6]} 33... Bf6+ {[%clk 0:00:08.5]} 34. Kb1 {[%clk 0:00:29.7]} 34... Qg1+
{[%clk 0:00:08.7]} 35. Kc2 {[%clk 0:00:29.3]} 35... Qf2+ {[%clk 0:00:08.7]} 36.
Kd3 {[%clk 0:00:29.2]} 36... Qf1+ {[%clk 0:00:09]} 37. Ke4 {[%clk 0:00:27.1]}
37... Qc4+ {[%clk 0:00:08.9]} 38. Qxc4 {[%clk 0:00:26.3]} 38... bxc4 {[%clk
0:00:09.8]} 39. Nb6 {[%clk 0:00:24.1]} 39... c3 {[%clk 0:00:09.9]} 40. Kd3
{[%clk 0:00:23.9]} 40... Ke7 {[%clk 0:00:10.4]} 41. Na4 {[%clk 0:00:23.1]} 41...
Kd6 {[%clk 0:00:09]} 42. Nxc3 {[%clk 0:00:23.1]} 42... Kc6 {[%clk 0:00:06.4]}
43. Kc4 {[%clk 0:00:21.9]} 43... Be7 {[%clk 0:00:06.7]} 44. e4 {[%clk
0:00:21.8]} 44... Bxa3 {[%clk 0:00:06.4]} 45. f5 {[%clk 0:00:19.8]} 45... exf5
{[%clk 0:00:06]} 46. exf5 {[%clk 0:00:20.1]} 46... Kd6 {[%clk 0:00:06.9]} 47. f6
{[%clk 0:00:14.6]} 47... Ke6 {[%clk 0:00:07.1]} 48. Nd5 {[%clk 0:00:14.8]} 48...
Bd6 {[%clk 0:00:06.4]} 49. Kd4 {[%clk 0:00:13.9]} 49... a5 {[%clk 0:00:06.2]}
50. Kc4 {[%clk 0:00:13.8]} 50... a4 {[%clk 0:00:06.3]} 51. Nc3 {[%clk
0:00:11.4]} 51... a3 {[%clk 0:00:06.2]} 52. Kb3 {[%clk 0:00:11.5]} 52... Kxf6
{[%clk 0:00:04.9]} 53. Nb5 {[%clk 0:00:11.6]} 53... Ke6 {[%clk 0:00:05.4]} 54.
Nd4+ {[%clk 0:00:11.1]} 54... Kd5 {[%clk 0:00:05.2]} 55. Nc2 {[%clk 0:00:11.1]}
55... Ke4 {[%clk 0:00:04.4]} 56. Nxa3 {[%clk 0:00:07.4]} 1/2-1/2